[Event "*** MasterClass Titled Tuesday Blitz"]
[Site "Chess.com"]
[Date "2017.10.03"]
[Round "7"]
[White "Gudmundur_Kjartansson"]
[Black "HanSchut"]
[Result "0-1"]
[WhiteElo "2231"]
[BlackElo "2237"]
[TimeControl "180+2"]
[EndTime "14:38:09 PDT"]
[Termination "HanSchut won by resignation"]

1. d4 {[%clk 0:03:01.9]} 1... Nf6 {[%clk 0:03:00]} 2. Nf3 {[%clk 0:03:00]} 2...
g6 {[%clk 0:03:01.1]} 3. c4 {[%clk 0:03:00.2]} 3... Bg7 {[%clk 0:03:02.3]} 4.
Nc3 {[%clk 0:03:01.4]} 4... d5 {[%clk 0:03:03.5]} 5. e3 {[%clk 0:03:01]} 5...
O-O {[%clk 0:03:03.4]} 6. cxd5 {[%clk 0:02:53.3]} 6... Nxd5 {[%clk 0:03:03.8]}
7. Bc4 {[%clk 0:02:53.8]} 7... Nb6 {[%clk 0:03:04.7]} 8. Be2 {[%clk 0:02:54.5]}
8... c5 {[%clk 0:03:01.4]} 9. O-O {[%clk 0:02:53.4]} 9... cxd4 {[%clk
0:02:58.8]} 10. Nxd4 {[%clk 0:02:52]} 10... a6 {[%clk 0:02:55.4]} 11. Bf3 {[%clk
0:02:52.1]} 11... Qc7 {[%clk 0:02:39.1]} 12. a4 {[%clk 0:02:50.4]} 12... e5
{[%clk 0:02:24.5]} 13. Nb3 {[%clk 0:02:38.5]} 13... Rd8 {[%clk 0:02:22.2]} 14.
Qc2 {[%clk 0:02:27.2]} 14... Be6 {[%clk 0:02:03.9]} 15. a5 {[%clk 0:02:26.5]}
15... Nd5 {[%clk 0:01:59.1]} 16. Bxd5 {[%clk 0:02:17.5]} 16... Bxd5 {[%clk
0:01:59.8]} 17. e4 {[%clk 0:02:18.4]} 17... Bc4 {[%clk 0:01:53.7]} 18. Re1
{[%clk 0:02:14.1]} 18... Nc6 {[%clk 0:01:53.2]} 19. Be3 {[%clk 0:02:13.4]} 19...
Nb4 {[%clk 0:01:30.7]} 20. Nd5 {[%clk 0:01:43.2]} 20... Rxd5 {[%clk 0:01:27.6]}
21. Qc3 {[%clk 0:01:38.8]} 21... Rd3 {[%clk 0:01:15.1]} 22. Qxb4 {[%clk
0:01:39.7]} 22... Rxb3 {[%clk 0:01:12.4]} 23. Qa4 {[%clk 0:01:37.1]} 23... Qc6
{[%clk 0:01:00]} 24. Qxc6 {[%clk 0:01:17.7]} 24... bxc6 {[%clk 0:01:00.4]} 25.
Rec1 {[%clk 0:01:19.2]} 25... Bb5 {[%clk 0:00:57.6]} 26. Rc2 {[%clk 0:01:18]}
26... Rd3 {[%clk 0:00:52.7]} 27. h3 {[%clk 0:01:17.4]} 27... Rad8 {[%clk
0:00:51.9]} 28. Kh2 {[%clk 0:01:14.6]} 28... h5 {[%clk 0:00:50.3]} 29. Rac1
{[%clk 0:01:11.4]} 29... R8d7 {[%clk 0:00:51]} 30. Rxc6 {[%clk 0:01:11]} 30...
Bxc6 {[%clk 0:00:51.2]} 31. Rxc6 {[%clk 0:01:11.4]} 31... Rxe3 {[%clk
0:00:28.6]} 32. fxe3 {[%clk 0:01:11.7]} 32... Bh6 {[%clk 0:00:29.8]} 33. Rxa6
{[%clk 0:01:06.8]} 33... Bxe3 {[%clk 0:00:29.7]} 34. Ra8+ {[%clk 0:01:06.6]}
34... Kg7 {[%clk 0:00:30.3]} 35. Rb8 {[%clk 0:01:07.5]} 35... h4 {[%clk
0:00:26.3]} 36. g4 {[%clk 0:00:59.4]} 36... Rd2+ {[%clk 0:00:20.6]} 37. Kh1
{[%clk 0:00:59.9]} 37... Bf4 {[%clk 0:00:20.9]} 38. a6 {[%clk 0:00:58.3]} 38...
Rd1+ {[%clk 0:00:19.8]} 39. Kg2 {[%clk 0:00:58.7]} 39... Ra1 {[%clk 0:00:21.7]}
40. Rb6 {[%clk 0:00:55]} 40... Be3 {[%clk 0:00:19]} 41. Rc6 {[%clk 0:00:55]}
41... Ra2 {[%clk 0:00:18.3]} 42. Kf3 {[%clk 0:00:52.5]} 42... Bd4 {[%clk
0:00:19.2]} 43. b4 {[%clk 0:00:51.7]} 43... Rb2 {[%clk 0:00:19.5]} 44. Rc4
{[%clk 0:00:51.8]} 44... Rb3+ {[%clk 0:00:16.5]} 45. Ke2 {[%clk 0:00:50.5]}
45... Rxh3 {[%clk 0:00:17.5]} 46. b5 {[%clk 0:00:44.3]} 46... Ra3 {[%clk
0:00:15.5]} 47. Rc6 {[%clk 0:00:27.2]} 47... h3 {[%clk 0:00:14.6]} 48. Rc1
{[%clk 0:00:23.9]} 48... h2 {[%clk 0:00:11.7]} 49. Rh1 {[%clk 0:00:19.3]} 49...
Ra2+ {[%clk 0:00:12.9]} 50. Kd3 {[%clk 0:00:20.3]} 50... Kf6 {[%clk 0:00:13.5]}
51. Kc4 {[%clk 0:00:21]} 51... Kg5 {[%clk 0:00:14.3]} 52. Kd5 {[%clk 0:00:21.3]}
52... Kxg4 {[%clk 0:00:15.7]} 53. Kc6 {[%clk 0:00:22.4]} 53... Kg3 {[%clk
0:00:17.1]} 54. b6 {[%clk 0:00:19.1]} 54... Bxb6 {[%clk 0:00:18.1]} 55. Kxb6
{[%clk 0:00:19.9]} 55... Kg2 {[%clk 0:00:19.5]} 56. Rxh2+ {[%clk 0:00:19.1]}
56... Kxh2 {[%clk 0:00:20.3]} 57. a7 {[%clk 0:00:21]} 57... f5 {[%clk 0:00:21]}
58. exf5 {[%clk 0:00:20.9]} 58... gxf5 {[%clk 0:00:21.5]} 59. a8=Q {[%clk
0:00:21.4]} 59... Rxa8 {[%clk 0:00:21.6]} 0-1

[Event "*** MasterClass Titled Tuesday Blitz"]
[Site "Chess.com"]
[Date "2017.10.03"]
[Round "7"]
[White "ChessQueen"]
[Black "swayamsm"]
[Result "1-0"]
[WhiteElo "2594"]
[BlackElo "2484"]
[TimeControl "180+2"]
[EndTime "14:38:42 PDT"]
[Termination "ChessQueen won by resignation"]

1. e4 {[%clk 0:03:01.9]} 1... e5 {[%clk 0:03:00.2]} 2. Nf3 {[%clk 0:03:02.8]}
2... Nc6 {[%clk 0:02:53.7]} 3. Bc4 {[%clk 0:03:03.3]} 3... Nf6 {[%clk
0:02:54.1]} 4. d3 {[%clk 0:03:01.8]} 4... Be7 {[%clk 0:02:51.1]} 5. O-O {[%clk
0:03:01.6]} 5... O-O {[%clk 0:02:52.6]} 6. Re1 {[%clk 0:03:02.8]} 6... d6 {[%clk
0:02:52.6]} 7. a4 {[%clk 0:03:02.5]} 7... Be6 {[%clk 0:02:29.2]} 8. Na3 {[%clk
0:02:59.1]} 8... Qd7 {[%clk 0:02:28.8]} 9. c3 {[%clk 0:02:57]} 9... Rae8 {[%clk
0:02:25.5]} 10. d4 {[%clk 0:02:56]} 10... exd4 {[%clk 0:02:08.4]} 11. cxd4
{[%clk 0:02:53.8]} 11... d5 {[%clk 0:02:09.1]} 12. exd5 {[%clk 0:02:47.4]} 12...
Nxd5 {[%clk 0:02:09.4]} 13. Bb5 {[%clk 0:02:42]} 13... Bb4 {[%clk 0:02:05.6]}
14. Ne5 {[%clk 0:02:34.7]} 14... Qd8 {[%clk 0:02:02.2]} 15. Bxc6 {[%clk
0:02:32.1]} 15... bxc6 {[%clk 0:01:34.7]} 16. Nxc6 {[%clk 0:02:27.7]} 16... Qd6
{[%clk 0:01:35.1]} 17. Nxb4 {[%clk 0:02:28.3]} 17... Nxb4 {[%clk 0:01:37]} 18.
Nb5 {[%clk 0:02:23.8]} 18... Qb6 {[%clk 0:01:31.1]} 19. Bf4 {[%clk 0:02:17.2]}
19... Nd5 {[%clk 0:01:28.6]} 20. Bg3 {[%clk 0:01:40.3]} 20... a6 {[%clk
0:01:26.9]} 21. Nc3 {[%clk 0:01:41]} 21... Qxb2 {[%clk 0:01:21.7]} 22. Nxd5
{[%clk 0:01:41.7]} 22... Bxd5 {[%clk 0:01:23.6]} 23. Rxe8 {[%clk 0:01:02.8]}
23... Rxe8 {[%clk 0:01:25.1]} 24. Rb1 {[%clk 0:00:55.6]} 24... Qc3 {[%clk
0:00:29.6]} 25. h3 {[%clk 0:00:32.1]} 25... c6 {[%clk 0:00:28.4]} 26. Qe2 {[%clk
0:00:25.7]} 26... Be6 {[%clk 0:00:15.6]} 27. Qxa6 {[%clk 0:00:22]} 27... Qxd4
{[%clk 0:00:11.9]} 28. Qxc6 {[%clk 0:00:21.1]} 28... Bd7 {[%clk 0:00:12.6]} 29.
Qb7 {[%clk 0:00:09]} 29... Qxa4 {[%clk 0:00:13.2]} 30. Kh2 {[%clk 0:00:09.2]}
30... Bc6 {[%clk 0:00:13.4]} 31. Qb6 {[%clk 0:00:09.8]} 31... h5 {[%clk
0:00:12.7]} 32. Rc1 {[%clk 0:00:10.4]} 32... Bd5 {[%clk 0:00:11.3]} 33. h4
{[%clk 0:00:11.5]} 33... Qe4 {[%clk 0:00:11.5]} 34. f3 {[%clk 0:00:12.8]} 34...
Qe2 {[%clk 0:00:12.3]} 35. Qf2 {[%clk 0:00:11.2]} 35... Qd3 {[%clk 0:00:12.8]}
36. Qf1 {[%clk 0:00:11.1]} 36... Re2 {[%clk 0:00:10.4]} 37. Rd1 {[%clk
0:00:11.7]} 37... Qc4 {[%clk 0:00:04.6]} 38. Rxd5 {[%clk 0:00:12.2]} 38... Rxg2+
{[%clk 0:00:05.7]} 39. Kxg2 {[%clk 0:00:11.4]} 39... Qxd5 {[%clk 0:00:07.6]} 40.
Qe2 {[%clk 0:00:12.5]} 40... Qc6 {[%clk 0:00:08]} 41. Qe4 {[%clk 0:00:12.6]}
41... Qb5 {[%clk 0:00:07.7]} 42. Qe5 {[%clk 0:00:11.3]} 42... Qd3 {[%clk
0:00:05.7]} 43. Qe8+ {[%clk 0:00:11.4]} 43... Kh7 {[%clk 0:00:06.9]} 44. Qe4+
{[%clk 0:00:11.9]} 44... Qxe4 {[%clk 0:00:07.7]} 45. fxe4 {[%clk 0:00:13.4]}
45... f6 {[%clk 0:00:08.3]} 46. Kf3 {[%clk 0:00:13.7]} 46... Kg6 {[%clk
0:00:09]} 47. Kf4 {[%clk 0:00:14.3]} 47... Kf7 {[%clk 0:00:10.4]} 48. Be1 {[%clk
0:00:15.2]} 48... Ke6 {[%clk 0:00:10.6]} 49. Bc3 {[%clk 0:00:16]} 49... g6
{[%clk 0:00:11.2]} 50. Bb2 {[%clk 0:00:15.4]} 50... Kf7 {[%clk 0:00:12.3]} 51.
e5 {[%clk 0:00:15.6]} 51... g5+ {[%clk 0:00:08.6]} 52. hxg5 {[%clk 0:00:16.1]}
52... fxe5+ {[%clk 0:00:10.5]} 53. Kf5 {[%clk 0:00:17.2]} 53... h4 {[%clk
0:00:10.7]} 54. Bxe5 {[%clk 0:00:17.2]} 54... h3 {[%clk 0:00:11.5]} 55. Bf4
{[%clk 0:00:16.8]} 55... Kg7 {[%clk 0:00:12.6]} 56. g6 {[%clk 0:00:18]} 56...
Kg8 {[%clk 0:00:12.9]} 57. Kf6 {[%clk 0:00:19]} 57... Kf8 {[%clk 0:00:14.3]} 58.
g7+ {[%clk 0:00:19.9]} 58... Kg8 {[%clk 0:00:15.6]} 59. Bh2 {[%clk 0:00:20.7]}
1-0

[Event "*** MasterClass Titled Tuesday Blitz"]
[Site "Chess.com"]
[Date "2017.10.03"]
[Round "7"]
[White "Gabrielian_Artur"]
[Black "Oleksandr_Bortnyk"]
[Result "0-1"]
[WhiteElo "2560"]
[BlackElo "2821"]
[TimeControl "180+2"]
[EndTime "14:38:53 PDT"]
[Termination "Oleksandr_Bortnyk won by resignation"]

1. e4 {[%clk 0:03:01.9]} 1... Nf6 {[%clk 0:02:59.5]} 2. e5 {[%clk 0:03:03]} 2...
Nd5 {[%clk 0:03:00.8]} 3. d4 {[%clk 0:03:04.1]} 3... d6 {[%clk 0:03:02.1]} 4.
Nf3 {[%clk 0:03:04.8]} 4... dxe5 {[%clk 0:03:03.1]} 5. Nxe5 {[%clk 0:03:05.6]}
5... c6 {[%clk 0:03:04.2]} 6. Be2 {[%clk 0:03:06.7]} 6... Bf5 {[%clk 0:03:04.1]}
7. O-O {[%clk 0:03:01.4]} 7... Nd7 {[%clk 0:03:05.4]} 8. Nf3 {[%clk 0:03:02.1]}
8... e6 {[%clk 0:03:06.8]} 9. c4 {[%clk 0:03:00.8]} 9... N5f6 {[%clk 0:03:08.1]}
10. Nc3 {[%clk 0:02:54.2]} 10... Bd6 {[%clk 0:03:08.6]} 11. Nh4 {[%clk 0:02:52]}
11... Bg6 {[%clk 0:03:05.4]} 12. g3 {[%clk 0:02:52.2]} 12... O-O {[%clk
0:03:01.8]} 13. Be3 {[%clk 0:02:52.6]} 13... Qc7 {[%clk 0:02:55.6]} 14. Nxg6
{[%clk 0:02:51.8]} 14... hxg6 {[%clk 0:02:56.5]} 15. Qc2 {[%clk 0:02:49.9]}
15... Rfe8 {[%clk 0:02:56.5]} 16. Rad1 {[%clk 0:02:49.8]} 16... Rad8 {[%clk
0:02:54.8]} 17. Bf3 {[%clk 0:02:50.7]} 17... e5 {[%clk 0:02:52.1]} 18. Bg2
{[%clk 0:02:51.6]} 18... exd4 {[%clk 0:02:28.4]} 19. Bxd4 {[%clk 0:02:52.5]}
19... Bc5 {[%clk 0:02:16.8]} 20. Bxc5 {[%clk 0:02:46]} 20... Nxc5 {[%clk
0:02:18.7]} 21. b4 {[%clk 0:02:46.9]} 21... Ne6 {[%clk 0:02:17.8]} 22. c5 {[%clk
0:02:47.9]} 22... Nd4 {[%clk 0:02:16.3]} 23. Qb2 {[%clk 0:02:48.5]} 23... Qe5
{[%clk 0:02:13.9]} 24. Rd2 {[%clk 0:02:49.1]} 24... Ng4 {[%clk 0:01:41]} 25. h3
{[%clk 0:02:38.8]} 25... Nf6 {[%clk 0:00:43.4]} 26. Rfd1 {[%clk 0:02:37.8]}
26... Rd7 {[%clk 0:00:33]} 27. Nd5 {[%clk 0:01:57.8]} 27... Rxd5 {[%clk
0:00:17.2]} 28. Bxd5 {[%clk 0:01:57.4]} 28... Ne2+ {[%clk 0:00:18.3]} 29. Rxe2
{[%clk 0:01:41.7]} 29... Qxe2 {[%clk 0:00:20.2]} 30. Qxe2 {[%clk 0:01:40.4]}
30... Rxe2 {[%clk 0:00:22.1]} 31. Bb3 {[%clk 0:01:37.1]} 31... Re8 {[%clk
0:00:20.9]} 32. a4 {[%clk 0:01:28.4]} 32... Kf8 {[%clk 0:00:21.4]} 33. b5 {[%clk
0:01:29.2]} 33... g5 {[%clk 0:00:20.2]} 34. bxc6 {[%clk 0:01:25.6]} 34... bxc6
{[%clk 0:00:22.1]} 35. Rd6 {[%clk 0:01:26.5]} 35... Rc8 {[%clk 0:00:23.3]} 36.
Bc4 {[%clk 0:01:25.6]} 36... Rc7 {[%clk 0:00:22.2]} 37. f3 {[%clk 0:01:22.4]}
37... Nd7 {[%clk 0:00:22.1]} 38. a5 {[%clk 0:01:04.8]} 38... Nxc5 {[%clk
0:00:23.3]} 39. Kf2 {[%clk 0:01:02.6]} 39... Ke7 {[%clk 0:00:23.6]} 40. Rd2
{[%clk 0:01:03.1]} 40... f6 {[%clk 0:00:17.2]} 41. Re2+ {[%clk 0:01:00.1]} 41...
Kd8 {[%clk 0:00:18.3]} 42. a6 {[%clk 0:00:57.4]} 42... Rd7 {[%clk 0:00:19.2]}
43. Rb2 {[%clk 0:00:54.4]} 43... Kc7 {[%clk 0:00:19.1]} 44. Ke3 {[%clk
0:00:54.9]} 44... Rd1 {[%clk 0:00:17.3]} 45. f4 {[%clk 0:00:49.2]} 45... Ra1
{[%clk 0:00:10.8]} 46. fxg5 {[%clk 0:00:48.4]} 46... fxg5 {[%clk 0:00:12.7]} 47.
Rf2 {[%clk 0:00:48.5]} 47... Nxa6 {[%clk 0:00:07.7]} 48. Rf7+ {[%clk 0:00:46.5]}
48... Kb6 {[%clk 0:00:08.9]} 49. Rxg7 {[%clk 0:00:46]} 49... Ra3+ {[%clk
0:00:09.5]} 50. Kf2 {[%clk 0:00:42.4]} 50... Nc5 {[%clk 0:00:10.5]} 51. Re7
{[%clk 0:00:32.5]} 51... a5 {[%clk 0:00:11.8]} 52. h4 {[%clk 0:00:33.6]} 52...
gxh4 {[%clk 0:00:12.5]} 53. gxh4 {[%clk 0:00:34.8]} 53... Rh3 {[%clk 0:00:14.4]}
54. Rh7 {[%clk 0:00:34.5]} 54... a4 {[%clk 0:00:15.8]} 55. h5 {[%clk 0:00:34.8]}
55... a3 {[%clk 0:00:14.8]} 56. h6 {[%clk 0:00:33.7]} 56... Rh4 {[%clk
0:00:16.1]} 57. Bg8 {[%clk 0:00:30.8]} 57... Ne4+ {[%clk 0:00:15.7]} 58. Kg2
{[%clk 0:00:29.6]} 58... Nf6 {[%clk 0:00:16.6]} 59. Rg7 {[%clk 0:00:12.8]} 59...
Nxg8 {[%clk 0:00:17.6]} 60. Rxg8 {[%clk 0:00:14.2]} 60... Rxh6 {[%clk
0:00:18.9]} 61. Ra8 {[%clk 0:00:15]} 61... Rf6 {[%clk 0:00:17]} 62. Rxa3 {[%clk
0:00:15.7]} 62... c5 {[%clk 0:00:18.5]} 63. Ra1 {[%clk 0:00:16.7]} 63... c4
{[%clk 0:00:19.4]} 64. Kg3 {[%clk 0:00:16.4]} 64... Kc5 {[%clk 0:00:20.7]} 65.
Kg4 {[%clk 0:00:16.4]} 65... c3 {[%clk 0:00:22]} 66. Kg5 {[%clk 0:00:16.9]}
66... Rf8 {[%clk 0:00:22.8]} 0-1

[Event "*** MasterClass Titled Tuesday Blitz"]
[Site "Chess.com"]
[Date "2017.10.03"]
[Round "7"]
[White "Indianlad"]
[Black "SCIM"]
[Result "0-1"]
[WhiteElo "2590"]
[BlackElo "2438"]
[TimeControl "180+2"]
[EndTime "14:38:54 PDT"]
[Termination "SCIM won by resignation"]

1. Nf3 {[%clk 0:03:01.9]} 1... c5 {[%clk 0:02:59.5]} 2. e4 {[%clk 0:03:02.5]}
2... e6 {[%clk 0:02:59.8]} 3. d4 {[%clk 0:03:03.4]} 3... cxd4 {[%clk 0:03:00.8]}
4. c3 {[%clk 0:03:05.3]} 4... Nf6 {[%clk 0:02:57.9]} 5. e5 {[%clk 0:03:06.1]}
5... Nd5 {[%clk 0:02:58.2]} 6. Bc4 {[%clk 0:03:07.5]} 6... d6 {[%clk 0:02:59.2]}
7. cxd4 {[%clk 0:03:04.3]} 7... Be7 {[%clk 0:02:59.7]} 8. O-O {[%clk 0:03:04.4]}
8... O-O {[%clk 0:02:59.7]} 9. a3 {[%clk 0:03:05.7]} 9... b6 {[%clk 0:02:56]}
10. Bxd5 {[%clk 0:03:04.7]} 10... exd5 {[%clk 0:02:56.2]} 11. Nc3 {[%clk
0:03:06.4]} 11... Be6 {[%clk 0:02:56.1]} 12. Bf4 {[%clk 0:03:06.1]} 12... Nc6
{[%clk 0:02:49.3]} 13. Re1 {[%clk 0:03:07.2]} 13... dxe5 {[%clk 0:02:47.7]} 14.
Nxe5 {[%clk 0:03:05.4]} 14... Nxe5 {[%clk 0:02:48.3]} 15. Bxe5 {[%clk
0:03:05.7]} 15... Qd7 {[%clk 0:02:47.8]} 16. h3 {[%clk 0:03:01.9]} 16... Rac8
{[%clk 0:02:47.6]} 17. Re3 {[%clk 0:03:02.6]} 17... Bd6 {[%clk 0:02:46.2]} 18.
Qf3 {[%clk 0:03:02.6]} 18... Bxe5 {[%clk 0:02:45.8]} 19. Rxe5 {[%clk 0:03:03.9]}
19... f6 {[%clk 0:02:33.1]} 20. Re3 {[%clk 0:02:57.2]} 20... Bf7 {[%clk
0:02:33.5]} 21. Rae1 {[%clk 0:02:48.5]} 21... Rfe8 {[%clk 0:02:14.7]} 22. Rxe8+
{[%clk 0:02:48]} 22... Rxe8 {[%clk 0:02:14.8]} 23. Rxe8+ {[%clk 0:02:49.3]}
23... Qxe8 {[%clk 0:02:15.5]} 24. Nxd5 {[%clk 0:02:50.7]} 24... Qe1+ {[%clk
0:01:48.6]} 25. Kh2 {[%clk 0:02:49.9]} 25... h6 {[%clk 0:01:45.4]} 26. Qe3
{[%clk 0:02:31.3]} 26... Qb1 {[%clk 0:01:18.9]} 27. Ne7+ {[%clk 0:02:15.3]}
27... Kf8 {[%clk 0:01:11.1]} 28. Nc6 {[%clk 0:01:48.7]} 28... Qxb2 {[%clk
0:01:06]} 29. Nxa7 {[%clk 0:01:48.3]} 29... Qc2 {[%clk 0:00:58.1]} 30. Nb5
{[%clk 0:01:41.6]} 30... Qc6 {[%clk 0:00:56.9]} 31. a4 {[%clk 0:01:39.3]} 31...
Kg8 {[%clk 0:00:49.4]} 32. Qg3 {[%clk 0:01:30]} 32... Bc4 {[%clk 0:00:37.3]} 33.
Nd6 {[%clk 0:00:44.8]} 33... Be6 {[%clk 0:00:33.2]} 34. Nb5 {[%clk 0:00:38.9]}
34... Bc4 {[%clk 0:00:32.3]} 35. Qb8+ {[%clk 0:00:37]} 35... Kh7 {[%clk
0:00:32.1]} 36. Qd8 {[%clk 0:00:36.2]} 36... Bxb5 {[%clk 0:00:22.7]} 37. axb5
{[%clk 0:00:38.1]} 37... Qxb5 {[%clk 0:00:23.5]} 38. Qd6 {[%clk 0:00:38.3]}
38... Qb2 {[%clk 0:00:17.3]} 39. Kg3 {[%clk 0:00:37.8]} 39... b5 {[%clk
0:00:15.8]} 40. Qc5 {[%clk 0:00:33]} 40... b4 {[%clk 0:00:15.7]} 41. Qf5+ {[%clk
0:00:34]} 41... Kg8 {[%clk 0:00:16]} 42. Qd5+ {[%clk 0:00:35]} 42... Kh7 {[%clk
0:00:16.4]} 43. Qf5+ {[%clk 0:00:36.3]} 43... Kg8 {[%clk 0:00:17.4]} 44. Qc8+
{[%clk 0:00:37.3]} 44... Kh7 {[%clk 0:00:17.8]} 45. Qf5+ {[%clk 0:00:38.2]}
45... Kg8 {[%clk 0:00:18.7]} 46. Qd5+ {[%clk 0:00:39.2]} 46... Kh8 {[%clk
0:00:19.2]} 47. f3 {[%clk 0:00:29.6]} 47... Qc3 {[%clk 0:00:19.2]} 48. Qa8+
{[%clk 0:00:30]} 48... Kh7 {[%clk 0:00:19.7]} 49. Qe4+ {[%clk 0:00:31.9]} 49...
Kh8 {[%clk 0:00:20.9]} 50. d5 {[%clk 0:00:24.8]} 50... b3 {[%clk 0:00:18.1]} 51.
d6 {[%clk 0:00:22.7]} 51... b2 {[%clk 0:00:18.8]} 52. Qe8+ {[%clk 0:00:15.5]}
52... Kh7 {[%clk 0:00:18.9]} 53. Qe4+ {[%clk 0:00:17.4]} 53... Kh8 {[%clk
0:00:19.7]} 54. Kg4 {[%clk 0:00:13.3]} 54... f5+ {[%clk 0:00:18.4]} 55. Kxf5
{[%clk 0:00:07]} 55... Qf6+ {[%clk 0:00:18.8]} 56. Kg4 {[%clk 0:00:07.8]} 56...
Qxd6 {[%clk 0:00:20]} 57. Qc2 {[%clk 0:00:09.2]} 57... Qb6 {[%clk 0:00:19.2]}
58. Qc8+ {[%clk 0:00:09.1]} 58... Kh7 {[%clk 0:00:19]} 59. Qc2+ {[%clk 0:00:11]}
59... Qg6+ {[%clk 0:00:19.6]} 0-1